bitfinex-derivatives/quotes_SOLF0:USTF0_20250318
["timestamp","ask_amount","ask_price","bid_price","bid_amount"]
[1742305644550,98.06449068,122.01,121.92,2.0525]
[1742305644859,56.68449068,121.96,121.9,8.2039]
[1742305645054,41.56,121.95,121.86,270.58]
[1742305645248,8.2032,121.92,121.86,270.58]
[1742305645550,41.58,121.92,121.88,0.05701611]
[1742305645754,0.06137759,121.9,121.88,0.05701611]
[1742305645950,0.06137759,121.9,121.89,8.2047]
[1742305646353,0.06137759,121.9,121.88,0.05701611]
[1742305647249,0.06137759,121.9,121.89,8.2047]
[1742305647953,0.06137759,121.9,121.88,8.26211611]
[1742305648158,0.06137759,121.9,121.88,0.05701611]
[1742305648757,7.759e-05,121.9,121.89,8.2047]
[1742305650448,7.759e-05,121.9,121.89,16.4047]
[1742305651454,4.3481,121.99,121.89,8.2]
[1742305651750,56.68449068,122.05,121.94,56.68449068]
[1742305652058,102.50279068,122.05,121.95,316.3384]
[1742305652459,8.1965,122.02,121.98,8.198]
[1742305652665,0.05751728,122.01,121.99,0.05838231]
[1742305652960,0.05751728,122.01,122.0,8.1973]
[1742305653356,41.5,122.07,121.99,0.05838231]
[1742305653659,98.18449068,122.07,122.01,8.1964]
[1742305653859,41.5,122.07,122.01,8.1964]
[1742305654049,41.5,122.07,121.98,41.5]
[1742305654360,56.68449068,122.06,121.98,41.5]
[1742305654556,8.1959,122.03,122.01,0.06082576]
[1742305654854,0.05984838,122.04,122.01,0.06082576]
[1742305654855,41.49984838,122.04,122.01,0.06082576]
[1742305655056,8.1971,122.01,121.95,274.7784]
[1742305655259,41.4,122.01,121.95,270.64]
[1742305655653,4.2706,122.0,121.95,270.64]
[1742305655959,4.2706,122.0,121.96,8.1997]
[1742305656153,8.26003722,121.99,121.96,0.05900395]
[1742305656359,0.06183722,121.99,121.96,0.05900395]
[1742305656559,41.32,121.98,121.96,0.05900395]
[1742305656756,0.06183722,121.99,121.96,0.05900395]
[1742305657260,0.06183722,121.99,121.96,8.25850395]
[1742305657560,0.06183722,121.99,121.96,0.05900395]
[1742305658257,0.06183722,121.99,121.97,8.1989]
[1742305658559,0.06183722,121.99,121.96,0.05900395]
[1742305658755,0.06183722,121.99,121.97,8.1989]
[1742305658958,0.06183722,121.99,121.97,270.56]
[1742305659261,0.06183722,121.99,121.98,8.1987]
[1742305660160,2.1832,122.05,121.97,270.56]
[1742305660355,2.1832,122.05,121.98,2.011]
[1742305660556,2.1832,122.05,121.99,41.12]
[1742305660751,2.1413,122.06,121.99,41.12]
[1742305660956,10.3346,122.06,121.99,41.12]
[1742305661158,2.1413,122.06,121.99,41.12]
[1742305661455,0.06091447,122.04,122.01,0.06053455]
[1742305661764,0.06091447,122.04,122.02,8.196]
[1742305661963,0.06091447,122.04,122.01,0.06053455]
[1742305662165,0.06091447,122.04,122.02,41.02]
[1742305662368,0.06091447,122.04,122.03,270.54]
[1742305662871,423.83999068,122.12,122.03,270.54]
[1742305663067,60.83999068,122.12,122.03,270.54]
[1742305663261,38.95320094,122.12,122.07,8.1926]
[1742305663467,79.85320094,122.12,122.07,8.1926]
[1742305663869,8.1907,122.1,122.03,270.54]
[1742305664165,4.461e-05,122.08,122.06,0.05685072]
[1742305664372,4.461e-05,122.08,122.07,49.0523]
[1742305665267,4.461e-05,122.08,122.07,40.86]
[1742305665473,4.461e-05,122.08,122.06,0.05685072]
[1742305665967,4.461e-05,122.08,122.07,8.1926]
[1742305667366,4.461e-05,122.08,122.06,0.05685072]
[1742305668092,8.19234461,122.08,122.06,0.05685072]
[1742305668272,4.461e-05,122.08,122.06,0.05685072]
[1742305668469,4.461e-05,122.08,122.03,270.54]
[1742305668470,34.79774555,122.08,122.03,270.54]
[1742305668768,4.1894,122.07,122.03,270.54]
[1742305669169,4.461e-05,122.08,122.03,270.54]
[1742305669366,4.461e-05,122.08,122.03,278.7349]
[1742305669674,4.461e-05,122.08,122.04,0.05336363]
[1742305669675,8.1938,122.06,122.04,0.05336363]
[1742305669974,4.461e-05,122.08,122.04,8.24796363]
[1742305670170,8.1931,122.07,122.04,8.24796363]
[1742305670472,4.461e-05,122.08,122.04,0.05336363]
[1742305670681,4.461e-05,122.08,122.04,8.24756363]
[1742305670878,4.461e-05,122.08,122.04,0.05336363]
[1742305671077,4.461e-05,122.08,122.04,8.24766363]
[1742305671279,4.461e-05,122.08,122.04,0.05336363]
[1742305671873,8.1929,122.07,122.04,0.05336363]
[1742305672182,40.36,122.07,122.04,8.24766363]
[1742305672377,40.36,122.07,122.04,0.05336363]
[1742305672882,8.1936,122.06,122.04,0.05336363]
[1742305673076,40.36,122.07,122.04,0.05336363]
[1742305673383,8.194,122.05,122.04,0.05336363]
[1742305673577,75.15770094,122.07,121.99,270.42]
[1742305673778,2.4393,122.06,121.99,270.42]
[1742305674080,8.1954,122.03,121.99,270.42]
[1742305674478,8.195,122.04,122.01,8.1965]
[1742305674679,0.06231553,122.02,122.0,0.06262964]
[1742305674877,0.06231553,122.02,122.01,8.1962]
[1742305675178,0.06231553,122.02,122.0,0.06262964]
[1742305675376,0.06231553,122.02,122.0,8.25962964]
[1742305675571,0.06231553,122.02,122.0,0.06262964]
[1742305676080,8.25861553,122.02,122.0,0.06262964]
[1742305676275,0.06231553,122.02,122.0,0.06262964]
[1742305676582,0.06231553,122.02,121.95,270.42]
[1742305676583,8.1991,121.98,121.95,270.42]
[1742305676782,40.16,122.01,121.95,270.42]
[1742305677583,34.79770094,122.0,121.9,275.4343]
[1742305677789,0.0527876,121.99,121.97,0.06233167]
[1742305678085,8.2005,121.96,121.92,8.2026]
[1742305678388,40.14,121.98,121.9,275.4343]
[1742305678588,8.2001,121.96,121.92,8.2023]
[1742305678886,8.2001,121.96,121.9,275.4343]
[1742305679080,40.14,121.98,121.91,8.2029]
[1742305679280,0.05239498,121.95,121.93,0.05220478]
[1742305683185,40.31239498,121.95,121.93,0.05220478]
[1742305683583,75.11009592,121.95,121.9,270.42]
[1742305683891,75.11009592,121.95,121.86,310.78]
[1742305684391,40.26,121.95,121.93,8.2015]
[1742305684694,42.666,121.97,121.89,40.24]
[1742305684895,0.05610841,121.95,121.94,8.201]
[1742305685290,0.05610841,121.95,121.9,40.18]
[1742305686492,0.05610841,121.95,121.94,8.2014]
[1742305687689,0.05610841,121.95,121.9,2.5613]
[1742305688498,8.25720841,121.95,121.88,313.1404]
[1742305688799,34.85380935,121.95,121.88,270.6]
[1742305688995,2.5679,121.94,121.88,270.6]
[1742305689599,8.25619452,121.92,121.88,270.6]
[1742305689798,0.05339452,121.92,121.88,270.6]
[1742305690499,0.05339452,121.92,121.88,310.54]
[1742305690699,0.05339452,121.92,121.89,34.79770094]
[1742305691396,0.05339452,121.92,121.9,8.2037]
[1742305691602,0.05339452,121.92,121.91,39.96]
[1742305691996,0.05339452,121.92,121.89,39.9]
[1742305692301,0.05339452,121.92,121.88,270.6]
[1742305693297,34.85109546,121.92,121.84,273.2013]
[1742305693491,7.42659452,121.92,121.84,290.60015047]
[1742305693695,15.5763,121.92,121.86,8.2063]
[1742305694001,0.05523003,121.89,121.84,290.60015047]
[1742305694299,0.05523003,121.89,121.84,321.2491]
[1742305694892,8.26003003,121.89,121.84,270.64]
[1742305695094,0.05523003,121.89,121.84,270.64]
[1742305695797,8.2059,121.88,121.84,270.64]
[1742305696003,0.05523003,121.89,121.84,270.64]
[1742305696694,0.05523003,121.89,121.81,42.3455]
[1742305696892,8.2069,121.86,121.81,50.5553]
[1742305697197,0.05928595,121.85,121.81,50.5553]
[1742305697394,0.05928595,121.85,121.81,42.3455]
[1742305698502,0.05928595,121.85,121.81,50.5553]
[1742305698899,0.05928595,121.85,121.81,42.3455]
[1742305699095,0.05928595,121.85,121.8,272.04223612]
[1742305700000,0.05928595,121.85,121.8,270.7]
[1742305700200,0.05928595,121.85,121.8,310.54]
[1742305700402,0.05928595,121.85,121.8,345.33770094]
[1742305700601,8.26718595,121.85,121.8,353.54840094]
[1742305700807,0.05928595,121.85,121.8,318.7507]
[1742305701105,8.2084,121.84,121.8,270.7]
[1742305701305,0.05928595,121.85,121.8,310.54]
[1742305702507,0.05928595,121.85,121.8,345.33770094]
[1742305703400,8.26698595,121.85,121.81,8.21]
[1742305703604,8.26698595,121.85,121.8,345.33770094]
[1742305703807,0.05928595,121.85,121.8,345.33770094]
[1742305705096,0.05928595,121.85,121.81,1.8557]
[1742305706005,39.56,121.91,121.82,34.79770094]
[1742305706306,8.2043,121.9,121.83,39.56]
[1742305706806,8.2043,121.9,121.85,8.2074]
[1742305707008,8.2049,121.89,121.85,8.2074]
[1742305707209,0.05980122,121.89,121.86,0.0587961]
[1742305708608,8.2061,121.87,121.86,0.0587961]
[1742305708804,0.05980122,121.89,121.86,0.0587961]
[1742305709009,8.2054,121.88,121.86,0.0587961]
[1742305709204,0.05980122,121.89,121.86,0.0587961]
[1742305709510,8.26480122,121.89,121.86,0.0587961]
[1742305709713,0.05980122,121.89,121.86,0.0587961]
[1742305710106,8.2061,121.87,121.86,0.0587961]
[1742305710710,8.2056,121.88,121.86,0.0587961]
[1742305711013,0.05980122,121.89,121.86,0.0587961]
[1742305711214,8.2061,121.87,121.86,0.0587961]
[1742305711721,8.2057,121.88,121.86,0.0587961]
[1742305712014,0.05980122,121.89,121.86,0.0587961]
[1742305712813,0.05980122,121.89,121.87,8.2057]
[1742305713015,0.05980122,121.89,121.86,0.0587961]
[1742305715808,4.9513,121.97,121.88,34.79770094]
[1742305716009,4.9513,121.97,121.9,34.79770094]
[1742305716209,2.5866,122.0,121.91,39.18]
[1742305716518,39.16,121.99,121.92,270.78]
[1742305716708,2.5866,122.0,121.92,305.57770094]
[1742305716902,32.73452783,122.01,121.94,34.79770094]
[1742305717107,32.73452783,122.01,121.95,39.14]
[1742305717108,0.05513655,121.97,121.95,39.14]
[1742305717315,120.02660206,122.04,121.95,39.14]
[1742305717615,120.02660206,122.04,121.96,37.37080094]
[1742305717915,120.02660206,122.04,121.98,34.79770094]
[1742305718110,120.02660206,122.04,121.99,309.78]
[1742305718612,0.05518183,122.03,122.0,0.05991416]
[1742305720003,0.05518183,122.03,122.0,39.15991416]
[1742305720209,0.05518183,122.03,122.0,0.05991416]
[1742305725018,0.05518183,122.03,122.0,37.3731151]
[1742305725221,0.05518183,122.03,122.0,39.1675151]
[1742305725522,2.5866,122.09,122.0,39.1675151]
[1742305725818,39.08,122.08,122.0,39.10760094]
[1742305726424,39.08,122.08,122.01,39.06]
[1742305726717,44.0559,122.12,122.02,34.79770094]
[1742305726918,39.1,122.14,122.04,34.79770094]
[1742305727121,39.1,122.14,122.05,309.64]
[1742305728015,39.78110094,122.17,122.05,309.64]
[1742305728220,0.05297004,122.11,122.08,0.06006396]
[1742305728719,2.6058,122.19,122.1,34.79770094]
[1742305729020,2.6058,122.19,122.11,309.54]
[1742305729218,0.06027036,122.16,122.13,0.05242794]
[1742305730715,0.06027036,122.16,122.14,38.92]
[1742305731420,0.06027036,122.16,122.13,0.05242794]
[1742305733317,2.68147036,122.16,122.13,0.05242794]
[1742305733518,2.68147036,122.16,122.05,2.5176]
[1742305733519,397.79770094,122.15,121.94,45.14150588]
[1742305733718,34.79770094,122.09,121.98,34.79770094]
[1742305733918,39.1,122.08,121.98,73.87770094]
[1742305734324,41.665,122.08,121.96,73.87770094]
[1742305734626,34.79770094,122.07,121.96,73.87770094]
[1742305734818,0.06122578,122.03,122.01,0.05786499]
[1742305737425,8.25672578,122.03,122.01,0.05786499]
[1742305737621,0.06122578,122.03,122.01,0.05786499]
[1742305738121,8.196,122.02,122.01,0.05786499]
[1742305738317,34.85892672,122.03,121.95,1.6400164]
[1742305738624,17.39885047,122.0,121.95,1.6400164]
[1742305738927,39.14,122.01,121.95,1.6400164]
[1742305739224,39.14,122.01,121.92,73.91770094]
[1742305739616,0.06140076,121.99,121.97,0.06074008]
[1742305741721,7.6e-07,121.99,121.97,0.06074008]
[1742305742029,7.6e-07,121.99,121.98,8.1987]
[1742305742623,363.0,122.11,122.03,8.1948]
[1742305742922,39.08,122.07,122.03,8.1948]
[1742305743126,39.04,122.07,122.04,8.1943]
[1742305743429,39.04,122.09,122.01,270.44]
[1742305743631,41.585,122.08,122.05,8.1936]
[1742305743825,2.565,122.08,122.02,38.98]
[1742305744126,0.06047429,122.06,122.03,0.05821623]
[1742305744920,0.06047429,122.06,122.05,8.194]
[1742305745329,0.06047429,122.06,122.04,47.1742]
[1742305745627,0.06047429,122.06,122.04,38.98]
[1742305745826,0.06047429,122.06,122.04,47.1745]
[1742305746230,0.06047429,122.06,122.04,38.98]
[1742305746429,0.06047429,122.06,122.03,0.05821623]
[1742305746822,2.48227429,122.06,121.97,274.7221]
[1742305747026,34.79770094,122.05,121.97,309.4]
[1742305747225,39.06,122.04,121.97,309.4]
[1742305747430,8.1959,122.03,121.97,317.5991]
[1742305747625,39.06,122.04,121.97,309.4]
[1742305747826,47.255,122.04,121.97,309.4]
[1742305748021,0.05809898,122.02,121.99,0.0551706]
[1742305748827,0.05809898,122.02,122.0,38.98]
[1742305749034,0.05809898,122.02,122.01,8.1967]
[1742305749438,0.05809898,122.02,122.0,47.177]
[1742305749637,0.05809898,122.02,122.0,38.98]
[1742305750024,41.6073,122.09,122.0,38.98]
[1742305750230,2.6079,122.11,122.03,34.79770094]
[1742305750425,2.6079,122.11,122.04,309.44]
[1742305750630,39.02,122.1,122.04,309.44]
[1742305750829,56.41885047,122.1,122.04,270.42]
[1742305751131,73.81770094,122.1,122.0,309.42]
[1742305751435,0.05451902,122.08,122.06,0.06120475]
[1742305752329,2.4006,122.14,122.06,366.08769245]
[1742305752529,2.4006,122.14,122.06,366.0264877]
[1742305752730,8.1889,122.13,122.08,8.1919]
[1742305753032,8.1889,122.13,122.09,38.98]
[1742305753438,2.5084,122.13,122.09,38.98]
[1742305753637,0.06115025,122.12,122.1,0.05430954]
[1742305754533,8.1899,122.11,122.1,0.05430954]
[1742305754740,0.06115025,122.12,122.1,0.05430954]
[1742305755236,0.06115025,122.12,122.11,8.1899]
[1742305755738,0.06115025,122.12,122.1,38.97430954]
[1742305756137,2.4359,122.18,122.1,95.54079724]
[1742305756342,2.4359,122.18,122.15,8.1868]
[1742305756539,2.4359,122.18,122.13,270.32]
[1742305757037,38.86,122.17,122.13,270.32]
[1742305757235,38.91909897,122.17,122.13,270.32]
[1742305757637,38.91909897,122.17,122.14,0.05760995]
[1742305758030,0.05909897,122.17,122.14,0.05760995]
[1742305758640,0.05909897,122.17,122.15,8.1868]
[1742305758834,0.05909897,122.17,122.14,38.79760995]
[1742305759343,0.05909897,122.17,122.16,8.1866]
[1742305760946,8.1821,122.23,122.19,8.1842]
[1742305761443,2.4015,122.25,122.2,8.1839]
[1742305761635,2.4015,122.25,122.19,270.26]
[1742305761839,8.1823,122.23,122.19,270.26]
[1742305762035,8.1823,122.23,122.19,278.4441]
[1742305762240,8.1832,122.21,122.2,0.05302216]
[1742305762439,2.61476057,122.22,122.2,0.05302216]
[1742305763545,0.05596057,122.22,122.2,0.05302216]
[1742305764841,0.05596057,122.22,122.2,8.23662216]
[1742305765035,0.05596057,122.22,122.2,0.05302216]
[1742305765347,8.23886057,122.22,122.2,0.05302216]
[1742305765541,0.05596057,122.22,122.2,0.05302216]
[1742305766845,8.1832,122.21,122.2,0.05302216]
[1742305767545,8.23886057,122.22,122.2,0.05302216]
[1742305767749,0.05596057,122.22,122.2,0.05302216]
[1742305769154,0.05596057,122.22,122.21,278.3232]
[1742305769954,56.62244827,122.22,122.11,326.7064877]
[1742305770157,38.32,122.21,122.14,2.4346]
[1742305770744,8.1858,122.18,122.14,2.4346]
[1742305770951,46.5258,122.18,122.15,0.05238711]
[1742305771151,0.05547172,122.17,122.15,0.05238711]
[1742305771353,8.24157172,122.17,122.15,0.05238711]
[1742305771652,0.05547172,122.17,122.15,0.05238711]
[1742305772261,2.6122,122.28,122.16,38.3]
[1742305772458,8.1815,122.24,122.17,270.14]
[1742305772654,2.6122,122.28,122.17,326.7064877]
[1742305772855,2.6122,122.28,122.22,8.182]
[1742305773052,2.6122,122.28,122.19,56.5664877]
[1742305773053,2.6122,122.28,122.23,270.14]
[1742305773461,56.5664877,122.27,122.23,270.14]
[1742305773665,8.1806,122.25,122.24,0.0553942]
[1742305774058,8.182,122.23,122.19,270.14]
[1742305774262,39.23353033,122.26,122.19,270.14]
[1742305774466,0.0539027,122.22,122.2,0.06015562]
[1742305775257,8.1832,122.21,122.2,0.06015562]
[1742305775966,0.0539027,122.22,122.2,0.06015562]
[1742305776268,0.0539027,122.22,122.2,8.24405562]
[1742305776467,0.0539027,122.22,122.2,0.06015562]
[1742305776968,8.1832,122.21,122.2,0.06015562]
[1742305777167,0.0539027,122.22,122.2,0.06015562]
[1742305777670,0.0539027,122.22,122.21,8.1832]
[1742305777864,0.0539027,122.22,122.2,0.06015562]
[1742305779364,0.0539027,122.22,122.21,8.1832]
[1742305779563,0.0539027,122.22,122.2,0.06015562]
[1742305780064,0.0539027,122.22,122.21,8.1832]
[1742305780464,0.0539027,122.22,122.21,47.0232]
[1742305780665,0.0539027,122.22,122.21,38.84]
[1742305780865,0.0539027,122.22,122.2,0.06015562]
[1742305781062,0.0539027,122.22,122.2,8.24365562]
[1742305781263,0.0539027,122.22,122.2,0.06015562]
[1742305781669,0.0539027,122.22,122.2,8.24365562]
[1742305781867,0.0539027,122.22,122.2,0.06015562]
[1742305784170,0.0539027,122.22,122.21,8.1832]
[1742305784567,0.0539027,122.22,122.2,38.64015562]
[1742305784867,0.0539027,122.22,122.2,0.06015562]
[1742305786175,8.1832,122.21,122.2,0.06015562]
[1742305786366,46.8832,122.21,122.2,0.06015562]
[1742305786567,38.7,122.21,122.2,0.06015562]
[1742305787674,2.4330027,122.22,122.2,0.06015562]
[1742305787870,0.0539027,122.22,122.2,0.06015562]
[1742305788263,0.0539027,122.22,122.21,8.1832]
[1742305790478,0.0539027,122.22,122.2,8.24385562]
[1742305790674,0.0539027,122.22,122.2,0.06015562]
[1742305791077,0.0539027,122.22,122.21,8.1832]
[1742305794472,2.7e-06,122.22,122.21,45.43185756]
[1742305794781,10.6363,122.3,122.26,8.1796]
[1742305794982,40.7587,122.3,122.26,8.1796]
[1742305795483,8.1782,122.29,122.25,270.02]
[1742305795784,8.1782,122.29,122.27,0.06063695]
[1742305795785,8.23615134,122.29,122.27,0.06063695]
[1742305796481,8.1786,122.28,122.27,0.06063695]
[1742305797580,8.23625134,122.29,122.27,0.06063695]
[1742305797888,0.05795134,122.29,122.27,0.06063695]
[1742305798378,38.15795134,122.29,122.27,0.06063695]
[1742305798584,38.15795134,122.29,122.25,270.02]
[1742305798782,8.1799,122.26,122.25,270.02]
[1742305799285,38.1,122.26,122.21,269.98]
[1742305799481,72.80485756,122.26,122.21,269.98]
[1742305799681,34.70485756,122.24,122.22,0.05874749]
[1742305799986,38.14,122.23,122.17,272.5612]
[1742305800183,38.14,122.23,122.17,269.98]
[1742305800380,34.70485756,122.22,122.17,269.98]
[1742305800777,8.1853,122.18,122.17,269.98]
[1742305800980,38.04,122.19,122.18,0.05846584]
[1742305801484,46.2246,122.19,122.18,0.05846584]
[1742305802181,38.04,122.19,122.16,11.14445005]
[1742305802382,8.1859,122.17,122.16,11.14445005]
[1742305802880,34.70485756,122.18,122.15,124.00137357]
[1742305803081,37.9,122.17,122.15,124.00137357]
[1742305803279,34.70485756,122.18,122.15,124.00137357]
[1742305803482,37.93507399,122.17,122.15,0.06207779]
[1742305803880,8.1866,122.16,122.15,0.06207779]
[1742305804285,42.88485756,122.16,122.08,270.02]
[1742305804488,34.70485756,122.16,122.09,15.8501]
[1742305804881,34.70485756,122.16,122.09,7.6589]
[1742305805080,40.3743,122.17,122.1,37.84]
[1742305805283,37.88,122.17,122.1,37.84]
[1742305805490,0.06093628,122.15,122.13,8.1882]
[1742305805788,0.06093628,122.15,122.12,0.06188026]
[1742305806578,0.06093628,122.15,122.14,8.1879]
[1742305807183,0.06093628,122.15,122.12,0.06188026]
[1742305807884,0.06093628,122.15,122.13,37.9]
[1742305808081,8.184,122.2,122.16,8.1865]
[1742305808283,37.9,122.21,122.14,270.1]
[1742305808884,2.4829,122.22,122.14,270.1]
[1742305809193,8.1856,122.18,122.17,0.05370764]
[1742305809687,0.05878602,122.19,122.17,0.05370764]
[1742305810085,0.05878602,122.19,122.14,270.1]
[1742305810281,0.05878602,122.19,122.12,8.1889]
[1742305810594,34.70485756,122.18,122.09,313.099]
[1742305810785,8.1875,122.15,122.09,313.099]
[1742305810981,37.86,122.21,122.12,34.70485756]
[1742305811279,37.18775756,122.22,122.13,37.88]
[1742305811485,0.06012893,122.18,122.15,8.24286913]
[1742305811685,0.06012893,122.18,122.15,0.05596913]
[1742305811883,8.24572893,122.18,122.15,8.24276913]
[1742305812088,0.06012893,122.18,122.15,0.05596913]
[1742305812280,0.06012893,122.18,122.16,37.88]
[1742305812483,0.06012893,122.18,122.17,8.1859]
[1742305812783,37.86,122.26,122.16,72.58485756]
[1742305812981,37.86,122.26,122.17,4.8322]
[1742305813180,453.70376095,122.28,122.17,4.8322]
[1742305813181,491.60376095,122.28,122.17,4.8322]
[1742305813386,453.70376095,122.28,122.18,34.70485756]
[1742305813590,37.86,122.27,122.19,37.86]
[1742305813992,8.1819,122.23,122.22,0.05919116]
[1742305814591,72.59790486,122.24,122.15,270.12]
[1742305814892,72.54485756,122.24,122.15,270.12]
[1742305815288,2.3694,122.23,122.15,270.12]
[1742305815491,8.1846,122.2,122.15,270.12]
[1742305815691,0.05950043,122.2,122.18,0.05469872]
[1742305816088,8.1846,122.19,122.18,0.05469872]
[1742305816292,8.1846,122.19,122.11,5.0416]
[1742305816293,42.94435799,122.2,122.11,275.1416]
[1742305816598,34.70485756,122.18,122.11,275.1416]
[1742305816888,34.70485756,122.2,122.11,275.1416]
[1742305817094,8.184,122.2,122.17,8.1856]
[1742305817393,74.99435756,122.22,122.14,37.8]
[1742305817594,0.06160031,122.2,122.17,0.05725511]
[1742305817794,8.1859,122.18,122.17,0.05725511]
[1742305819500,37.76,122.19,122.17,0.05725511]
[1742305819802,37.72,122.19,122.17,0.05725511]
[1742305819992,8.1853,122.18,122.17,0.05725511]
[1742305820797,8.1853,122.18,122.17,5.511e-05]
[1742305822409,42.89015756,122.18,122.17,5.511e-05]
[1742305822697,8.1893,122.12,122.11,270.1]
[1742305823299,8.1889,122.13,122.11,270.1]
[1742305823599,37.62,122.15,122.11,270.1]
[1742305823797,0.05632464,122.13,122.11,0.06154936]
[1742305823999,37.62,122.12,122.11,0.06154936]
[1742305824298,45.8093,122.12,122.11,0.06154936]
[1742305824498,45.8093,122.12,122.11,4.936e-05]
[1742305824698,80.51415756,122.12,122.11,4.936e-05]
[1742305824902,74.89055756,122.12,122.06,270.14]
[1742305825103,2.5299,122.11,122.06,270.14]
[1742305825290,34.70485756,122.1,122.01,274.9161]
[1742305825496,37.58,122.09,122.01,274.9161]
[1742305825702,37.58,122.09,122.02,8.1955]
[1742305826000,0.06255682,122.07,122.04,0.06034921]
[1742305826209,37.56,122.06,122.04,0.06034921]
[1742305826390,8.194,122.05,122.04,0.06034921]
[1742305828902,37.38,122.05,122.04,0.06034921]
[1742305829997,45.574,122.05,122.04,0.06034921]
[1742305832805,37.38,122.05,121.97,277.5104]
[1742305833006,34.70485756,122.04,121.98,8.1981]
[1742305833206,34.70485756,122.04,121.97,277.5104]
[1742305833506,8.1974,122.0,121.97,285.7094]
[1742305834005,37.12,122.01,121.97,277.5104]
[1742305834203,0.05941317,122.0,121.93,275.3309]
[1742305834507,0.05941317,122.0,121.93,277.8309]
[1742305834709,0.05941317,122.0,121.95,8.2006]
[1742305834903,8.1985,121.99,121.93,277.8309]
[1742305835103,37.12,122.01,121.96,8.1995]
[1742305835300,0.06270207,121.97,121.93,277.8309]
[1742305835609,37.12,122.01,121.93,277.8309]
[1742305835806,8.021e-05,121.96,121.93,277.8309]
[1742305836417,8.021e-05,121.96,121.94,37.04]
[1742305836817,8.021e-05,121.96,121.95,8.2007]
[1742305839015,8.021e-05,121.96,121.95,45.2007]
[1742305839208,8.021e-05,121.96,121.95,88.10555756]
[1742305839408,37.26865756,122.06,122.0,8.1971]
[1742305839713,2.5638,122.06,121.99,270.44]
[1742305839908,37.0,122.07,122.03,8.1948]
[1742305840109,37.0,122.07,122.0,7.638]
[1742305840411,37.0,122.07,122.0,15.835]
[1742305840616,0.05424303,122.05,122.02,0.0613951]
[1742305841012,0.05424303,122.05,122.02,8.2567951]
[1742305841219,0.05424303,122.05,122.02,0.0613951]
[1742305842722,36.88,122.11,122.02,0.0613951]
[1742305843218,8.1923,122.08,122.01,36.96]
[1742305843417,36.88,122.11,122.01,36.96]
[1742305843819,0.05266619,122.07,122.05,0.0557413]
[1742305844821,0.05266619,122.07,122.06,8.1933]
[1742305845021,36.88,122.13,122.05,270.4757413]
[1742305845223,36.88,122.13,122.05,270.42]
[1742305845422,34.70485756,122.14,122.06,2.5072]
[1742305845624,36.94,122.13,122.07,36.94]
[1742305846317,34.70485756,122.12,122.09,0.05342065]
[1742305846619,8.1906,122.1,122.09,0.05342065]
[1742305846820,36.92,122.1,122.09,0.05342065]
[1742305847623,45.1106,122.1,122.09,0.05342065]
[1742305848625,71.62485756,122.1,122.05,270.42]
[1742305849021,36.92,122.1,122.05,270.42]
[1742305849823,0.06298247,122.11,122.09,8.1913]
[1742305850023,0.06298247,122.11,122.05,270.42]
[1742305850219,8.1907,122.1,122.09,0.05670753]
[1742305850724,8.1907,122.1,122.09,7.53e-06]
[1742305852732,0.06298247,122.11,122.09,7.53e-06]
[1742305852733,8.25318247,122.11,122.09,7.53e-06]
[1742305852928,0.06298247,122.11,122.09,7.53e-06]
[1742305853227,8.1906,122.1,122.09,7.53e-06]
[1742305853527,0.06298247,122.11,122.09,7.53e-06]
[1742305854223,8.1906,122.1,122.09,7.53e-06]
[1742305855626,42.89545756,122.1,122.09,7.53e-06]
[1742305857529,8.1933,122.06,122.05,270.42]
[1742305857728,36.46,122.07,122.03,2.5255]
[1742305857929,8.1953,122.03,122.02,2.4154]
[1742305858129,36.46,122.07,122.02,2.4154]
[1742305858329,36.46,122.07,122.01,278.5762]
[1742305858526,36.46,122.07,122.03,0.05610705]
[1742305858826,0.06189888,122.05,122.03,0.05610705]
[1742305859731,44.5346,122.04,122.03,0.05610705]
[1742305860222,71.04485756,122.04,121.97,270.4]
[1742305860421,34.70485756,122.02,121.96,2.4779]
[1742305860627,34.70485756,122.02,121.93,270.4]
[1742305860628,36.32,122.01,121.93,270.4]